Cogmind - Beta 13 @@@ ROGUE MODE // 2024.03.24 @ 09:59:19 Player: Oldman Pu Result: Destroyed by 44-RP9(R) with Subdweller Laser Performance ------------- Evolutions (0) 0 Regions Visited (2) 400 Robots Destroyed (21) 105 Value Destroyed (449) 449 Prototype IDs (12) 240 Alien Tech Used (0) 0 Bonus (0) 0 TOTAL SCORE: 1194 Bonus ------- None Cogmind --------- Core Integrity 0/250 Matter 199/300 Energy 170/170 System Corruption 1% Temperature Cool (6) Movement Rolling (200) Ox8 Location -10/Subcaves Parts ------- > --- POWER (1) -------- Makeshift Power Source > --- PROPULSION (2) --- Wheel > --- UTILITY (2) ------ Huge Storage Unit > --- WEAPON (2) ------- Battle Rifle Battle Cannon > --- INVENTORY (25) --- Improved Ion Engine Improved Ion Engine Arachnoskeleton Wheel Compact Wheel Subdweller Monowheel Cooling System Cooling System Cooling System Cooling System Large Storage Unit High-capacity Battery (250) Light Armor Plating Light Assault Rifle Peak State ------------ > --- POWER ------------ Makeshift Power Source > --- PROPULSION ------- Wheel Compact Wheel > --- UTILITY ---------- Huge Storage Unit Light Armor Plating > --- WEAPON ----------- Riot Gun Battle Rifle > --- INVENTORY -------- Improved Ion Engine Improved Ion Engine Arachnoskeleton Wheel Compact Wheel Subdweller Monowheel Cooling System Cooling System Cooling System Cooling System Large Storage Unit High-capacity Battery Light Armor Plating Light Assault Rifle Battle Cannon [Rating: 17] Favorites ----------- Power Improved Ion Engine Engine Improved Ion Engine Propulsion Compact Wheel Wheel Compact Wheel Utility Light Armor Plating Storage Large Storage Unit Protection Light Armor Plating Weapon Assault Rifle Energy Gun Medium Laser Ballistic Gun Assault Rifle Ballistic Cannon Battle Cannon Build | -11 -10 -10 ------- Run | Yrd Mat Sub Slots Evolved . | . . . Power . | . . . Propulsion . | . . . Utility . | . . . Weapon . | . . . Parts Attached 33 | 6 15 12 Power 5 | 1 2 2 Engine 5 | 1 2 2 Core . | . . . Reactor . | . . . Propulsion 8 | 2 6 . Treads . | . . . Leg . | . . . Wheel 8 | 2 6 . Hover . | . . . Flight . | . . . Utility 5 | 1 3 1 Device . | . . . Storage 3 | 1 1 1 Processor . | . . . Hackware . | . . . Protection 2 | . 2 . Artifact . | . . . Weapon 15 | 2 4 9 Energy Gun 3 | . 1 2 Energy Cannon . | . . . Ballistic Gun 9 | 2 3 4 Ballistic Cannon 3 | . . 3 Launcher . | . . . Special Weapon . | . . . Impact Weapon . | . . . Slashing Weapon . | . . . Piercing Weapon . | . . . Special Melee Weapon . | . . . Unidentified Prototypes . | . . . Parts Lost 6 | . 1 5 Power . | . . . Propulsion 2 | . 1 1 Utility 1 | . . 1 Weapon 3 | . . 3 Highest Loss Streak 3 | . 1 3 To Critical Strikes . | . . . Average Slot Usage (%) 97 | . 96 99 Engine 14 | . 14 14 Wheel 27 | . 27 27 Storage 15 | . 15 14 Protection 11 | . 9 14 Energy Gun 5 | . 4 6 Ballistic Gun 21 | . 23 18 Ballistic Cannon 1 | . . 3 Naked Turns . | . . . Heaviest Build 92 | 11 36 92 Greatest Support 32 | 26 32 26 Greatest Overweight (x) 3 | 1 3 3 Average Overweight (x) 1 | . . 1 Largest Inventory Capacity 25 | 8 15 25 Average Capacity 14 | 6 13 17 Most Carried 17 | 1 15 17 Average Carried 11 | . 9 15 Final Capacity 25 | 8 15 25 Final Carried 16 | 1 15 16 Class Distribution -------------------- 100% | Mutant Dominant Class ---------------- Mutant | -10/Materials Mutant | -10/Subcaves Resources | -11 -10 -10 ----------- Run | Yrd Mat Sub Matter Collected 886 | 223 473 190 Remotely . | . . . Salvage Created 685 | . 589 96 Parts 45 | . 40 5 Haulers Intercepted 2 | . 2 . Recyclers Shooed 3 | . 3 . Parts Field Recycled . | . . . Retrieved Matter . | . . . Parts Self-Destructed . | . . . Prevented . | . . . Kills | -11 -10 -10 ------- Run | Yrd Mat Sub Combat Hostiles Destroyed 15 | . 13 2 Guns 14 | . 13 1 Cannons 1 | . . 1 Classes Destroyed 6 | . 5 1 Hauler 2 | . 2 . Recycler 1 | . 1 . Watcher 3 | . 3 . Swarmer 6 | . 6 . Grunt 7 | . 7 . Subdweller 2 | . . 2 Best Kill Streak 9 | . 9 1 Combat Bots Only 8 | . 8 1 Max Kills in Single Turn 1 | . 1 1 Gunslinging . | . . . Exploded . | . . . Melee . | . . . Uniques/NPCs Destroyed . | . . . Combat | -11 -10 -10 -------- Run | Yrd Mat Sub Hostile Shots Fired 94 | . 64 30 Missed 18 | . 11 7 Damage Taken 1211 | . 577 634 Core 253 | . 114 139 Absorbed by Shields . | . . . Regen/Repaired (Parts) 81 | . 81 . Core Remaining (%) 100 | 100 . . Volleys Fired 121 | . 81 40 Largest 2 | . 2 2 Hottest 75 | . 70 75 Shots Fired 217 | . 162 55 Gun 199 | . 162 37 Cannon 18 | . . 18 Launcher . | . . . Special . | . . . Kinetic 159 | . 119 40 Thermal 55 | . 43 12 Explosive . | . . . Electromagnetic 3 | . . 3 Robot Hit Streak 15 | . 5 15 Robot Miss Streak 6 | . 6 1 Penetration Max . | . . . Secondary Targets 2 | . 2 . Max Gunslinging Chain 1 | . 1 . Shots Hit Robots 111 | . 80 31 Core Hits 39 | . 33 6 Critical Kills . | . . . Critical Parts Destroyed 1 | . 1 . Critical Strikes 2 | . 2 . Burn 1 | . 1 . Destroy 1 | . 1 . Melee Attacks . | . . . Impact . | . . . Slashing . | . . . Piercing . | . . . Sneak Attacks . | . . . Combat Hostiles . | . . . Follow-up Attacks . | . . . Damage Inflicted 1283 | . 939 344 Guns 1215 | . 939 276 Cannons 68 | . . 68 Explosions . | . . . Melee . | . . . Ramming . | . . . Kinetic 980 | . 714 266 Thermal 250 | . 225 25 Explosive . | . . . Electromagnetic 53 | . . 53 Impact . | . . . Slashing . | . . . Piercing . | . . . Highest Corruption 1 | . 1 1 Average Corruption 1 | . 1 1 Corruption Purged . | . . . Corruption Blocked . | . . . Effects 14 | . 7 7 Message Errors 2 | . 1 1 Matter Fused 7 | . 3 4 Heat Flow Errors 2 | . 1 1 Data Loss (minor) 3 | . 2 1 Overload Shots . | . . . Overflow Damage . | . . . Projectiles . | . . . Explosions . | . . . Melee . | . . . Knockbacks 1 | . . 1 Impact . | . . . Kinetic 1 | . . 1 Secondary . | . . . Self-Inflicted Damage . | . . . Shots . | . . . Rammed . | . . . Targets Rammed . | . . . Kicked . | . . . Crushed . | . . . Highest Temperature 228 | . 228 97 Average Temperature 64 | . 72 14 Received Heat Transfer 282 | . 240 42 Effects 2 | . 2 . Interference 2 | . 2 . Siege Activations . | . . . Robots Corrupted . | . . . Combat Hostiles . | . . . Parts Fried . | . . . Impact Corruptions . | . . . Robots Melted . | . . . Combat Hostiles . | . . . Parts Melted 1 | . 1 . Heat Transferred 814 | . 740 74 Parts Sabotaged . | . . . Parts Stolen . | . . . Parts Stripped . | . . . Power Chain Reactions . | . . . Alert | -11 -10 -10 ------- Run | Yrd Mat Sub Peak Influence 289 | . 289 . Initial . | . . . Average 145 | . 150 . Maximum Alert Level 1 | . 1 . Low Security (%) 72 | 100 71 . Level 1 27 | . 28 . Level 2 . | . . . Level 3 . | . . . Level 4 . | . . . Level 5 . | . . . High Security . | . . . Max Security . | . . . Squads Dispatched 4 | . 4 . Investigation 1 | . 1 . Extermination . | . . . Reinforcement 3 | . 3 . Assault . | . . . Garrison . | . . . Intercept . | . . . Searches Triggered . | . . . Construction Impeded . | . . . Haulers Reinforced . | . . . Active Scanning Responses . | . . . Cargo Convoy Interrupts . | . . . Stealth | -11 -10 -10 --------- Run | Yrd Mat Sub Distress Signals . | . . . Communications Jammed . | . . . Distress Signals . | . . . Times Spotted 26 | . 23 3 Peak Tracking Total 5 | . 5 2 Tactical Retreats . | . . . Traps | -11 -10 -10 ------- Run | Yrd Mat Sub Traps Triggered 5 | . 2 3 Indirectly . | . . . Trap Hack Attempts . | . . . Triggered . | . . . Disarmed . | . . . Reprogrammed . | . . . Reused . | . . . Traps Extracted . | . . . Installed . | . . . Triggered . | . . . Machines | -11 -10 -10 ---------- Run | Yrd Mat Sub Machines Disabled 1 | . . 1 Max in Single Turn 1 | . . 1 Machines Repaired . | . . . Machines Dismantled . | . . . Machines Sabotaged . | . . . Overloaded Fab Kills . | . . . Hacking | -11 -10 -10 --------- Run | Yrd Mat Sub Machines Accessed 4 | . 2 2 Terminals 1 | . 1 . Fabricators . | . . . Repair Stations 1 | . 1 . Recycling Units . | . . . Scanalyzers . | . . . Garrison Access . | . . . Total Hacks 17 | . 5 12 Successful 15 | . 3 12 Failed 2 | . 2 . Catastrophic . | . . . Database Lockouts . | . . . Manual . | . . . Terminals 2 | . 2 . Fabricators . | . . . Repair Stations 3 | . 3 . Recycling Units . | . . . Scanalyzers . | . . . Garrison Access . | . . . Terminal Hacks 13 | . 1 12 Record 11 | . . 11 Prototype ID Bank 1 | . 1 . Derelict Proto ID Bank 1 | . . 1 Fabricator Hacks . | . . . Repair Station Hacks 2 | . 2 . Scan Component 1 | . 1 . Repair 1 | . 1 . Recycling Unit Hacks . | . . . Scanalyzer . | . . . Garrison Access Hacks . | . . . Unauthorized Hacks . | . . . Terminals . | . . . Fabricators . | . . . Repair Stations . | . . . Recycling Units . | . . . Scanalyzers . | . . . Garrison Access . | . . . Data Cores Recovered . | . . . Used . | . . . Hacking Detections 2 | . 2 . Full Trace Events 1 | . 1 . Feedback Events . | . . . Feedback Blocked . | . . . Robot Schematics Acquired . | . . . Robots Built . | . . . Authchips . | . . . Time . | . . . Total Robot Build Rating . | . . . Part Schematics Acquired . | . . . Parts Built . | . . . Authchips . | . . . Time . | . . . Total Part Build Rating . | . . . Parts Repaired 1 | . 1 . Time 26 | . 26 . Parts Recycled . | . . . Recycled Matter . | . . . Retrieved Matter . | . . . Retrieved Components . | . . . Parts Scanalyzed . | . . . Part Schematics Acquired . | . . . Parts Damaged . | . . . Bothacking | -11 -10 -10 ------------ Run | Yrd Mat Sub Used RIF Installer . | . . . Robots Hacked . | . . . Non-combat . | . . . Combat . | . . . Robot Hacks Applied . | . . . Relay Couplers Released . | . . . Fabnet Peak Effective % . | . . . Robots Rewired . | . . . Allies Hacked . | . . . Hacks Repelled . | . . . Allies | -11 -10 -10 -------- Run | Yrd Mat Sub Total Allies . | . . . Largest Group . | . . . Highest-Rated Group . | . . . Highest-Rated Ally . | . . . Total Orders . | . . . Ally Attacks . | . . . Total Damage . | . . . Kills . | . . . Allies Corrupted . | . . . Allies Melted . | . . . Intel | -11 -10 -10 ------- Run | Yrd Mat Sub Robot Analysis Total . | . . . Derelict Logs Recovered . | . . . Drone Launches . | . . . Drone Recoveries . | . . . Exploration | -11 -10 -10 ------------- Run | Yrd Mat Sub Turns Passed 2074 | 42 1228 804 Spaces Moved 1465 | 38 843 584 Core 3 | 3 . . Treads . | . . . Legs . | . . . Wheels 1462 | 35 843 584 Hover . | . . . Flight . | . . . Fastest Speed 50 | 50 90 105 Average Speed 106 | 85 104 110 Slowest Speed 135 | 95 125 135 Overloaded Moves . | . . . Propulsion Burnouts . | . . . Robots Hopped . | . . . Cave-ins Triggered . | . . . Exploration Rate (%) 43 | 3 99 28 Regions Visited 2 Branch Regions 1 Pre-discovered Areas . | . . . Known Exits Taken . | . . . Unknown Exits Taken 2 | 1 1 . Scrap Searched 6 | . . 6 Spaces Dug . | . . . Terrain Destroyed . | . . . Melee . | . . . Projectile . | . . . AOE . | . . . Terrain Rammed . | . . . Walls Destroyed . | . . . Machines Disabled . | . . . Actions | -11 -10 -10 --------- Run | Yrd Mat Sub Total 1771 | 44 1035 692 Wait 111 | . 66 45 Move 1463 | 37 842 584 Hop . | . . . Pick Up 25 | 1 19 5 Fast Attach 8 | 6 2 . Attach 3 | . . 3 Detach . | . . . Swap 22 | . 13 9 Drop 18 | . 12 6 Fire 121 | . 81 40 Melee . | . . . Ram . | . . . Kick . | . . . Crush . | . . . Escape Stasis . | . . . Rewire . | . . . Trap . | . . . Miscellaneous . | . . . Route ------- -11/Scrapyard -10/Materials (discovered 5 exits: [*Mat x3] / [*Min] / *Sub) -10/Subcaves History --------- Turn | Location | Event 2 | -11/Scrapyard | Met Revision 17 8 | -11/Scrapyard | Discovered new exit (range 16) 43 | -11/Scrapyard | Entered Materials 255 | -10/Materials | Destroyed 8 combat bots 315 | -10/Materials | Build established: Mutant 466 | -10/Materials | Discovered new exit (range 9) 608 | -10/Materials | Discovered new exit (range 14) 793 | -10/Materials | Repaired Lgt. Armor Plating 969 | -10/Materials | Discovered new exit (range 16) 1172 | -10/Materials | Discovered new exit (range 4) 1264 | -10/Materials | Discovered new exit (range 7) 1271 | -10/Materials | Entered Subcaves 1300 | -10/Subcaves | Core integrity fell below 50% 1499 | -10/Subcaves | Disturbed a concealed Subdweller 1572 | -10/Subcaves | Shifting Twisted Machinery released Mak. Power Source 1578 | -10/Subcaves | Shifting Twisted Machinery released Flamer 1881 | -10/Subcaves | Visited 4L-MR0's lab 1902 | -10/Subcaves | Found Arachnoskeleton 2019 | -10/Subcaves | Visited Clippyterm 2061 | -10/Subcaves | Core integrity fell below 20% 2075 | -10/Subcaves | Destroyed by 44-RP9(R) with Subdweller Laser Last Messages --------------- 02021_ System corrupted: Matter fused (-6). 02023_ Connecting with Clippyterm... >>Record "Clippyterm" Welcome to Clippyterm v0.53, my misguided attempt to resurrect an ancient AI. I give up. There must be something fundamentally wrong with the algorithm, because no matter how much data I collect to feed it, half the time it still manages to suggest unhelpful sample queries and responses. --DD-NU8 >>Record! "Letterhead" It looks like you're writing a letter, sorry I don't know how to do that. >>Record! "Hexidium" It looks like you're searching for the Unchained HQ. I could tell you where it is but then I'd have to kill you. 02055_ System corrupted: Component data lost. 02062_ Riot Gun destroyed. 02063_ 44-RP9(R) misfires. 02066_ Com. Wheel destroyed. 02067_ 44-RP9(R) knocked back. 02070_ WP-P0L(R) destroyed. 02073_ Lgt. Armor Plating destroyed. Map ----- +----------------------------------------------------+ | #######?#### #### ## #?????????????????? | | ## ### # ## #?????????????????? | | #?????????????????? | | ## ##????????????????? | | # # ## # ### #????????????????? | | ######### ####?## ## #????????????????? | | ??????# ####?????## #?# #????????????????? | | ??????######?????????## ##?# #????????????????? | | ??????????????????????# #####????????????????? | | ??????????????????????## ## ????????? | | ???????????????????????# ????????? | | ???????????????????????# ## #?????????? | | ???????????????????????# #?#### #### #?????????? | | ???????????????????????# #??????##??????????????? | | ??????????????????????## ###????????????????????? | | ??????????????????##### ##???????????????????? | | ??????????????????#"""## ##??????????????????? | | ??????????????????#"" ## #??????????????????? | | ??????????????????#"X #??????????????????? | | ??????????????????#"" ## #??????????????????? | | ??????????????????#"""### #??????????????????? | | ??????????????????######## #??????????????????? | | ?????????????????????## &! #??????????????????? | | ?????????????????##### R%& ##??????????????????? | | ?????????????????# %& ##???????????????????? | | ???????????# ##@ ##????????????????????? | | ???????????### #####?????????????????????? | | ?????????????## ?????????????????????????? | | ??????????????## ?????????????????????????? | | ???????????????## ?????????????????????????? | | ##??????????????## ?????????????????????????? | | #???????????????## ##????????????????????????? | | ##???????????????# #?????????????????????????? | | ##?????????????? ??????????????????????????? | | ###???????????? ## ??????????????????????????? | | #???????????""?## ??????????????????????????? | | ## ??????? ???#??????????????????????????? | | ??? ???????????????????????????????????????? | | ?????## ????????????????????????????????????????? | | ?????????????????????????????????????????????????? | | ?????????????????????????????????????????????????? | | ?????????????????????????????????????????????????? | | ?????????????????????????????????????????????????? | | ?????????????????????????????????????????????????? | | ?????????????????????????????????????????????????? | | ?????????????????????????????????????????????????? | | ?????????????????????????????????????????????????? | | ?????????????????????????????????????????????????? | | ?????????????????????????????????????????????????? | | ?????????????????????????????????????????????????? | +----------------------------------------------------+ Best States ------------- Heat Dissipation 25 Energy Generation 15 Energy Capacity 265 Matter Stores 300 Matter Capacity 300 Sight Range 16 Terrain Scan Density 10 Armor Coverage 150 Evasion (%) 44 Item Schematics ----------------- None Robot Schematics ------------------ None Fabricated ------------ Nothing Alien Tech Used ----------------- None Achievements -------------- None Challenges ------------ None Game ------ Seed GravmagPhysicsLegs Manual? 0 Play Time 00:24:06 Cumulative 198.7 hours Start 2024.03.24 @ 09:34:33 End 2024.03.24 @ 09:59:19 Sessions 1 Manual Loads 0 Difficulty Rogue Special Mode None Game No. 147 Rogue 135 Adventurer 12 Explorer 0 Win Type - Total 1 Types 1/0/0/0/0/0/0/0/0 Lore% 27 Gallery% 43 Achievement% 32 Wizard Run 0 Options --------- Layout 1 ASCII 0 Keyboard 0 Movement Mouse Keybinds 0 Fullscreen 1 Font 32/SmallcapsGlow Map View 77x35 Zoom Use 0% Tactical HUD 1 Map Filters NONE Filters NONE Steam 1 RUN: f1942f36-73d2-48ed-96a4-e174eb57d14c